fUST/lending_fUST_20240101
["ID","MTS","AMOUNT","RATE_DAILY","PERIOD"]
[309785314,1704119604327,5210.01915065,0.0002,2]
[309785315,1704119613278,14915.21421456,0.0002,2]
[309785316,1704119623522,-1510.2412559,0.00021142,2]
[309785317,1704119623546,-154.84515485,0.0002146,2]
[309785318,1704119623571,-23234.91358925,0.00021461,2]
[309785319,1704119624330,4601.57200016,0.0002,2]
[309785320,1704119646331,202.17463769,0.0002,2]
[309785321,1704119655092,155.02196719,0.0002,2]
[309785322,1704119862519,1810.8157704,0.00020011,2]
[309785323,1704119904194,250.0,0.00020004,2]
[309785324,1704119957336,4018.6935939,0.00019993,2]
[309785326,1704120092265,24900.0,0.00019954,2]
[309785329,1704120490962,174.87694341,0.00020493,2]
[309785330,1704120598978,26366.26316002,0.00020367,2]
[309785340,1704120628860,15350.5519272,0.00019554,2]
[309785352,1704120631675,-155.4,0.00020547,3]
[309785353,1704120631685,-1677.73758043,0.00020551,2]
[309785354,1704120631695,-757.20968572,0.00020552,5]
[309785355,1704120631704,-1733.29488981,0.00020552,2]
[309785356,1704120631714,-2507.02872787,0.00020552,2]
[309785357,1704120631724,-264.3616191,0.00020553,2]
[309785358,1704120631733,-154.84515485,0.00020553,2]
[309785359,1704120631742,-2803.25312316,0.00020553,2]
[309785360,1704120631752,-1018.88153191,0.00020553,2]
[309785361,1704120631761,-1572.81659635,0.00020553,2]
[309785362,1704120631770,-1018.88153191,0.00020553,2]
[309785363,1704120631780,-293.82215808,0.00020554,2]
[309785364,1704120631789,-873.27865021,0.00020554,2]
[309785365,1704120631798,-20821.7469816,0.00020554,2]
[309785366,1704120631808,-6206.19794345,0.00020554,2]
[309785367,1704120631817,-1584.15548242,0.00020555,2]
[309785368,1704120631827,-641.65330945,0.00020555,2]
[309785369,1704120631836,-1237.40369246,0.00020555,2]
[309785370,1704120631846,-154.84515485,0.00020557,2]
[309785371,1704120631855,-2702.82461258,0.00020557,2]
[309785372,1704120631864,-44657.66352796,0.00020557,2]
[309785402,1704120637937,-732.54514733,0.00020546,2]
[309785413,1704120638045,-211.24928546,0.00020546,2]
[309785415,1704120638056,-858.99104883,0.00020546,2]
[309785416,1704120638066,-285.17267218,0.00020546,2]
[309785418,1704120638076,-166.23904276,0.00020546,2]
[309785419,1704120638086,-296.34,0.00020548,3]
[309785420,1704120638096,-5715.8803072,0.00020551,2]
[309785421,1704120638126,-13906.76165522,0.00020551,2]
[309785422,1704120638137,-33550.3513822,0.00020557,2]
[309785423,1704120638148,-15178.7193092,0.00020558,2]
[309785424,1704120638159,-154.84515485,0.00020558,2]
[309785425,1704120638170,-328.6475025,0.00020558,2]
[309785426,1704120638181,-2630.41248819,0.00020559,2]
[309785427,1704120638191,-154.84515485,0.00020559,2]
[309785428,1704120638200,-707.58589183,0.00020559,2]
[309785429,1704120638210,-230.0137314,0.00020559,2]
[309785430,1704120638221,-166.08253714,0.00020559,2]
[309785431,1704120638230,-552.93023041,0.00020559,2]
[309785432,1704120638241,-3731.01777703,0.00020559,2]
[309785433,1704120638251,-36751.74188348,0.00020563,2]
[309785434,1704120638261,-15849.01373132,0.00020564,2]
[309785435,1704120638273,-985.62699123,0.00020574,2]
[309785436,1704120638283,-450.53484104,0.00020591,2]
[309785437,1704120638293,-158.84299488,0.00020856,2]
[309785438,1704120638303,-158.84299488,0.00020867,2]
[309785439,1704120638315,-1600.4807732,0.00020964,2]
[309785440,1704120638419,-154.84515485,0.00020979,5]
[309785441,1704120638430,-2066.1268001,0.00020979,2]
[309785442,1704120638442,-328.14293882,0.00021,2]
[309785443,1704120638453,-156.70281333,0.00021917,4]
[309785444,1704120638464,-166.666666,0.00021918,2]
[309785445,1704120638474,-166.666666,0.00022431,2]
[309785446,1704120638485,-166.666666,0.00022944,2]
[309785447,1704120638499,-2818.42017679,0.00023,2]
[309785448,1704120638510,-1713.29618388,0.00023282,5]
[309785449,1704120638519,-166.666666,0.00023456,2]
[309785450,1704120638529,-166.666666,0.00023969,2]
[309785451,1704120638540,-320.37147176,0.00024002,2]
[309785452,1704120638550,-309.50473674,0.00024002,2]
[309785453,1704120638561,-124080.03574463,0.00024004,2]
[309785454,1704120638571,-166.666666,0.00024482,2]
[309785455,1704120638581,-293.95399784,0.00025,2]
[309785456,1704120638592,-173.5726575,0.00032877,2]
[309785457,1704120638602,-2674.06388022,0.00033,4]
[309785458,1704120638613,-1000.0,0.00034,7]
[309785459,1704120638624,-238.0,0.00034869,2]
[309785460,1704120638634,-235.107,0.00034869,2]
[309785461,1704120638644,-666.12182543,0.0003496,5]
[309785462,1704120638654,-1143.0,0.00035452,2]
[309785463,1704120638664,-728.303419,0.00035469,2]
[309785464,1704120638674,-150.0937365,0.00035469,2]
[309785465,1704120638683,-205.147728,0.00035616,120]
[309785466,1704120638693,-2013.35054239,0.00037715,2]
[309785467,1704120638702,-2430.35600858,0.00037715,2]
[309785468,1704120638712,-341.7688137,0.00037715,2]
[309785469,1704120638723,-226.339,0.00037869,2]
[309785470,1704120638733,-150.0,0.00037869,2]
[309785471,1704120638743,-1193.0,0.0003874,2]
[309785472,1704120638753,-1000.0,0.00039,39]
[309785473,1704120638764,-11777.04573227,0.0003988,5]
[309785474,1704120638773,-1000.0,0.0004,40]
[309785475,1704120638783,-1869.91003689,0.00040919,2]
[309785476,1704120638793,-1000.0,0.00041,41]
[309785477,1704120638803,-1000.0,0.00041046,10]
[309785478,1704120638814,-1000.0,0.00041046,10]
[309785479,1704120638825,-250.0,0.00041095,10]
[309785480,1704120638835,-200.0,0.000414,4]
[309785481,1704120638846,-5000.0,0.00041795,15]
[309785482,1704120638855,-8000.0,0.000418,32]
[309785483,1704120638865,-395.70526037,0.00041974,4]
[309785484,1704120638875,-249.26821487,0.00041974,4]
[309785485,1704120638885,-1000.0,0.00042,42]
[309785486,1704120638895,-37240.07406147,0.00042,2]
[309785487,1704120638905,-151.0,0.00042,7]
[309785488,1704120638915,-1243.0,0.00042192,4]
[309785489,1704120638925,-550.0,0.00042465,3]
[309785490,1704120638935,-153.0,0.00042466,2]
[309785491,1704120638945,-153.0,0.00042466,2]
[309785492,1704120638955,-2007.45430288,0.00042635,5]
[309785493,1704120638966,-518.76196537,0.00042635,4]
[309785494,1704120638975,-156.45322492,0.00042635,4]
[309785495,1704120638986,-2093.8261262,0.00042635,4]
[309785496,1704120638996,-6352.2242838,0.00042636,4]
[309785497,1704120639005,-6446.58360177,0.00042637,4]
[309785498,1704120639016,-154.84515485,0.00042637,4]
[309785499,1704120639027,-328.73683984,0.00042637,4]
[309785500,1704120639038,-309.59752322,0.00042637,2]
[309785501,1704120639048,-17155.47448373,0.00042638,4]
[309785502,1704120639057,-336.87103659,0.00042639,3]
[309785503,1704120639066,-189.98264854,0.00042639,14]
[309785504,1704120639076,-189.98264854,0.00042639,14]
[309785505,1704120639085,-189.98264854,0.00042639,14]
[309785506,1704120639094,-189.98264854,0.00042639,14]
[309785507,1704120639103,-189.98264854,0.00042639,14]
[309785508,1704120639112,-189.98264854,0.00042639,14]
[309785509,1704120639121,-189.98264854,0.00042639,14]
[309785510,1704120639131,-189.98264854,0.00042639,14]
[309785511,1704120639140,-189.98264854,0.00042639,14]
[309785512,1704120639150,-189.98264854,0.00042639,14]
[309785513,1704120639158,-189.98264854,0.00042639,14]
[309785515,1704120639167,-189.98264854,0.00042639,14]
[309785517,1704120639177,-189.98264854,0.00042639,14]
[309785519,1704120639186,-189.98264854,0.00042639,14]
[309785521,1704120639194,-189.98264854,0.00042639,14]
[309785522,1704120639203,-189.98264854,0.00042639,14]
[309785523,1704120639212,-189.98264854,0.00042639,14]
[309785524,1704120639221,-189.98264854,0.00042639,14]
[309785526,1704120639230,-189.98264854,0.00042639,14]
[309785528,1704120639239,-189.98,0.00042639,14]
[309785529,1704120639249,-759.93059416,0.00042639,14]
[309785530,1704120639258,-759.93059416,0.00042639,14]
[309785531,1704120639266,-759.93059416,0.00042639,14]
[309785532,1704120639275,-759.93059416,0.00042639,14]
[309785533,1704120639285,-759.93059416,0.00042639,14]
[309785534,1704120639294,-759.93059416,0.00042639,14]
[309785535,1704120639303,-759.93059416,0.00042639,14]
[309785536,1704120639312,-759.93059416,0.00042639,14]
[309785537,1704120639321,-759.93059416,0.00042639,14]
[309785538,1704120639329,-759.93059416,0.00042639,14]
[309785539,1704120639338,-759.93059416,0.00042639,14]
[309785540,1704120639348,-759.93059416,0.00042639,14]
[309785541,1704120639357,-759.93059416,0.00042639,14]
[309785542,1704120639366,-759.93059416,0.00042639,14]
[309785543,1704120639375,-759.93059416,0.00042639,14]
[309785544,1704120639384,-759.93059416,0.00042639,14]
[309785545,1704120639394,-759.93059416,0.00042639,14]
[309785546,1704120639403,-759.93059416,0.00042639,14]
[309785547,1704120639412,-759.93059416,0.00042639,14]
[309785548,1704120639421,-759.93,0.00042639,14]
[309785549,1704120639431,-179.62,0.00042639,14]
[309785550,1704120639440,-196.59469595,0.00042639,14]
[309785551,1704120639449,-196.59,0.00042639,14]
[309785552,1704120639459,-276.0,0.000427,11]
[309785553,1704120639469,-1452.38142427,0.00042726,2]
[309785554,1704120639479,-203.25480308,0.00042737,4]
[309785555,1704120639488,-1481.36565769,0.00042737,4]
[309785556,1704120639498,-588.02410115,0.00042737,4]
[309785557,1704120639507,-264.81529472,0.00042737,4]
[309785558,1704120639516,-272.76877784,0.00042737,4]
[309785559,1704120639525,-557.24427179,0.00042737,4]
[309785560,1704120639534,-161.23752701,0.00042738,2]
[309785561,1704120639543,-248.16102767,0.00042738,4]
[309785562,1704120639553,-966.00061109,0.00042738,4]
[309785563,1704120639563,-850.63448819,0.00042738,4]
[309785564,1704120639573,-7925.10846151,0.00042738,2]
[309785565,1704120639584,-200.9116987,0.00042739,3]
[309785566,1704120639593,-2791.82724676,0.00042739,2]
[309785567,1704120639602,-154.84515485,0.00042739,4]
[309785568,1704120639611,-467.24673478,0.00042739,2]
[309785569,1704120639620,-1472.7289945,0.00042739,4]
[309785570,1704120639629,-501.23805255,0.00042739,7]
[309785571,1704120639638,-452.03,0.00042739,7]
[309785572,1704120639647,-523.24480658,0.00042739,7]
[309785573,1704120639656,-500.0,0.00042739,7]
[309785574,1704120639665,-500.0,0.00042739,7]
[309785575,1704120639675,-500.0,0.00042739,7]
[309785576,1704120639685,-500.0,0.00042739,7]
[309785577,1704120639694,-500.0,0.00042739,7]
[309785578,1704120639704,-500.0,0.00042739,7]
[309785579,1704120639714,-500.0,0.00042739,7]
[309785580,1704120639728,-500.0,0.00042739,7]
[309785581,1704120639737,-500.0,0.00042739,7]
[309785582,1704120639746,-500.0,0.00042739,7]
[309785583,1704120639754,-500.0,0.00042739,7]
[309785584,1704120639764,-500.0,0.00042739,7]
[309785585,1704120639773,-500.0,0.00042739,7]
[309785586,1704120639782,-325.0,0.00042739,7]
[309785587,1704120639792,-316.14527264,0.00042739,7]
[309785588,1704120639801,-500.0,0.00042739,7]
[309785589,1704120639811,-500.0,0.00042739,7]
[309785590,1704120639820,-500.0,0.00042739,7]
[309785591,1704120639829,-500.0,0.00042739,7]
[309785592,1704120639839,-500.0,0.00042739,7]
[309785593,1704120639848,-500.0,0.00042739,7]
[309785595,1704120639858,-500.0,0.00042739,7]
[309785596,1704120639867,-500.0,0.00042739,7]
[309785597,1704120639877,-500.0,0.00042739,7]
[309785598,1704120639887,-500.0,0.00042739,7]
[309785599,1704120639896,-500.0,0.00042739,7]
[309785600,1704120639906,-510.27,0.00042739,7]
[309785601,1704120639915,-504.04782209,0.00042739,7]
[309785602,1704120639924,-500.0,0.00042739,7]
[309785603,1704120639934,-500.0,0.00042739,7]
[309785604,1704120639943,-500.0,0.00042739,7]
[309785605,1704120639952,-500.0,0.00042739,7]
[309785606,1704120639961,-500.0,0.00042739,7]
[309785607,1704120639971,-500.0,0.00042739,7]
[309785608,1704120639980,-96.34092853,0.00042739,7]
[309785612,1704120640924,-360.01037887,0.00020545,2]
[309785613,1704120640934,-252.25002524,0.00037715,2]
[309785614,1704120640944,-403.65907147,0.00042739,7]
[309785615,1704120640954,-500.0,0.00042739,7]
[309785616,1704120640964,-500.0,0.00042739,7]
[309785617,1704120640974,-500.0,0.00042739,7]
[309785618,1704120640984,-500.0,0.00042739,7]
[309785619,1704120640994,-500.0,0.00042739,7]
[309785620,1704120641005,-361.54482478,0.00042739,7]
[309785621,1704120641018,-138.45517522,0.00042739,7]
[309785622,1704120641028,-500.0,0.00042739,7]
[309785623,1704120641038,-500.0,0.00042739,7]
[309785624,1704120641052,-637.41826779,0.00042739,7]
[309785625,1704120641065,-500.0,0.00042739,7]
[309785626,1704120641075,-1330.40375724,0.00042739,7]
[309785627,1704120641090,-947.40499133,0.00042739,7]
[309785628,1704120641127,-3204.92125143,0.00042739,7]
[309785629,1704120641138,-88.85635929,0.00042739,7]
[309785630,1704120641152,-5000.0,0.00042739,7]
[309785644,1704120642755,-393.87364071,0.00042739,7]
[309785646,1704120642765,-70.12635929,0.00042739,7]
[309785701,1704120645741,-1733.29488981,0.00024002,2]
[309785702,1704120645751,-862.10617392,0.00037714,4]
[309785703,1704120645760,-213.04527803,0.00042738,4]
[309785704,1704120645769,-1900.04405752,0.00042738,4]
[309785705,1704120645780,-208.5232423,0.00042738,4]
[309785706,1704120645790,-3082.98635842,0.00042738,2]
[309785708,1704120645930,-309.94907844,0.00042738,2]
[309785709,1704120645948,-27251.86544133,0.00042738,2]
[309785710,1704120645968,-5412.60364071,0.00042739,7]
[309785711,1704120645980,-1387.97892162,0.00042739,7]
[309785755,1704121012254,5942.09361641,0.00019335,2]
[309785756,1704121028255,410.13066739,0.00019335,2]
[309785757,1704121028434,263.321881,0.00020476,2]
[309785758,1704121121622,24900.0,0.00020453,2]
[309785764,1704121297252,511.9340679,0.00020409,2]
[309785766,1704121519055,263.321881,0.00020168,2]
[309785768,1704121554169,19520.5360279,0.00020158,2]
[309785821,1704121831930,-154.84515485,0.00020984,2]
[309785823,1704121831940,-205.79,0.00020985,3]
[309785825,1704121831960,-166.08253714,0.00020987,2]
[309785828,1704121831972,-2702.82461258,0.00020987,2]
[309785830,1704121831982,-641.65330945,0.00020987,2]
[309785833,1704121831991,-1733.29488981,0.00020988,2]
[309785836,1704121832001,-264.3616191,0.00020988,2]
[309785839,1704121832011,-166.23904276,0.00020988,2]
[309785842,1704121832020,-164.57325592,0.00020988,2]
[309785844,1704121832030,-176.21297277,0.00020988,2]
[309785847,1704121832040,-253.03689703,0.00020988,2]
[309785849,1704121832050,-2803.25312316,0.00020989,2]
[309785851,1704121832060,-360.01037887,0.00020989,2]
[309785853,1704121832070,-154.84515485,0.00020989,2]
[309785855,1704121832080,-36751.74188348,0.00020989,2]
[309785857,1704121832089,-873.27865021,0.0002099,2]
[309785859,1704121832099,-707.58589183,0.0002099,2]
[309785861,1704121832110,-7928.30997934,0.0002099,2]
[309785863,1704121832119,-293.82215808,0.00020991,2]
[309785865,1704121832129,-757.20968572,0.00020991,5]
[309785867,1704121832138,-1237.40369246,0.00020991,2]
[309785868,1704121832148,-246.95,0.00020991,3]
[309785869,1704121832157,-78208.01491016,0.00020995,2]
[309785870,1704121832167,-552.93023041,0.00020996,2]
[309785871,1704121832177,-328.6475025,0.00020996,2]
[309785872,1704121832186,-1584.15548242,0.00020996,2]
[309785873,1704121832196,-858.99104883,0.00020996,2]
[309785874,1704121832205,-154.84515485,0.00021,2]
[309785875,1704121832215,-1677.73758043,0.00021,2]
[309785876,1704121832225,-399.15407367,0.00021,2]
[309785877,1704121832234,-1572.81659635,0.00021,2]
[309785878,1704121832243,-3731.01777703,0.00021,2]
[309785879,1704121832253,-2630.41248819,0.00021,2]
[309785880,1704121832263,-328.14293882,0.00021,2]
[309785881,1704121832273,-6206.19794345,0.00021,2]
[309785882,1704121832282,-15178.7193092,0.00021,2]
[309785883,1704121832293,-585.77366444,0.00021001,2]
[309785884,1704121832303,-285.17267218,0.00021001,2]
[309785885,1704121832312,-19622.64196242,0.00021001,2]
[309785886,1704121832322,-5125.94109435,0.00021001,2]
[309785923,1704121838139,-154.84515485,0.00020983,2]
[309785924,1704121838149,-265.06435549,0.00020984,2]
[309785925,1704121838193,-325.09747176,0.00020984,2]
[309785926,1704121838202,-230.0137314,0.00020984,2]
[309785927,1704121838212,-1677.73758043,0.00020986,2]
[309785928,1704121838221,-10723.07263697,0.00021001,2]
[309785929,1704121838232,-20814.78657621,0.00021005,2]
[309785930,1704121838243,-155.01198607,0.00021028,2]
[309785931,1704121838252,-172.67434374,0.00021029,2]
[309785932,1704121838262,-172.67434373,0.0002104,2]
[309785933,1704121838271,-675.55479392,0.00021135,2]
[309785934,1704121838281,-2095.81020185,0.00021167,2]
[309785935,1704121838292,-223.5951374,0.00021204,2]
[309785936,1704121838302,-245.44220656,0.00021403,2]
[309785939,1704121838313,-2007.45430288,0.00021483,5]
[309785942,1704121838323,-6446.58360177,0.00021483,2]
[309785945,1704121838334,-154.84515485,0.00021483,2]
[309785947,1704121838344,-850.63448819,0.0002159,2]
[309785948,1704121838354,-248.16102767,0.0002159,2]
[309785949,1704121838365,-161.23752701,0.0002159,2]
[309785950,1704121838375,-264.81529472,0.0002159,2]
[309785951,1704121838386,-1481.36565769,0.0002159,2]
[309785952,1704121838396,-203.25480308,0.00021591,2]
[309785953,1704121838406,-272.76877784,0.00021591,2]
[309785954,1704121838416,-156.45322492,0.00022,2]
[309785955,1704121838427,-200.0,0.00023111,7]
[309785956,1704121838437,-154.84515485,0.00023885,2]
[309785957,1704121838448,-171.49,0.00023892,3]
[309785958,1704121838457,-10470.42522499,0.00023902,2]
[309785959,1704121838466,-158501.47180364,0.00023904,2]
[309785960,1704121838481,-39989.47595354,0.00023904,2]
[309785961,1704121838494,-681.52188321,0.00023904,2]
[309785993,1704121841187,-2254.64370593,0.00021,2]
[309785994,1704121841200,-1065.03343426,0.00021,2]
[309786054,1704121845937,-7900.97282986,0.00021,2]
[309786055,1704121845951,-2993.1212639,0.00021,2]
[309786056,1704121845964,-757.20968572,0.00021512,5]
[309786057,1704121845976,-585.77366444,0.00023902,2]
[309786058,1704121845987,-2630.41248819,0.00023902,2]
[309786059,1704121845998,-285.17267218,0.00023902,2]
[309786060,1704121846009,-328.6475025,0.00023903,2]
[309786061,1704121846019,-1248.39905646,0.00023903,2]
[309786062,1704121846030,-328.89096697,0.00023903,2]
[309786063,1704121846041,-1237.40369246,0.00023903,2]
[309786064,1704121846051,-2803.25312316,0.00023903,2]
[309786065,1704121846061,-1584.15548242,0.00023903,2]
[309786066,1704121846072,-297.00871755,0.00023903,2]
[309786067,1704121846083,-1733.29488981,0.00023903,2]
[309786068,1704121846093,-858.99104883,0.00023903,2]
[309786069,1704121846103,-50759.32208225,0.00023904,2]
[309786092,1704122061342,1521.11458686,0.00017928,5]
[309786093,1704122114446,1349.55044235,0.00017928,5]
[309786094,1704122130163,1349.55044235,0.00017928,5]
[309786095,1704122146162,1345.14300456,0.00017928,5]
[309786098,1704122424548,15955.75611074,0.00019648,2]
[309786099,1704122424579,8944.24388926,0.00019648,2]
[309786111,1704122538353,16615.2140982,0.00019569,2]
[309786112,1704122554841,209.26,0.00020518,3]
[309786113,1704122563670,168.93736697,0.00020425,2]
[309786114,1704122565867,174.38,0.00020518,3]
[309786115,1704122570912,858.99104883,0.00020521,2]
[309786116,1704122575859,1677.73758043,0.00020521,2]
[309786117,1704122577791,871.95,0.00020513,3]
[309786118,1704122580655,154.84515485,0.00020521,2]
[309786119,1704122581772,641.65330945,0.00020521,2]
[309786120,1704122583048,853.52032075,0.00020521,2]
[309786121,1704122583615,2507.02872787,0.00020521,2]
[309786122,1704122583964,707.58589183,0.00020521,2]
[309786123,1704122584333,166.08253714,0.00020521,2]
[309786124,1704122591166,7928.30997934,0.00020521,2]
[309786125,1704122592700,166.23904276,0.00020521,2]
[309786126,1704122594767,226.84679432,0.00020521,2]
[309786127,1704122595862,1677.73758043,0.00020521,2]
[309786128,1704122597485,20821.7469816,0.00020521,2]
[309786129,1704122597601,19622.64196242,0.00020521,2]
[309786130,1704122597901,507.63659586,0.00020521,2]
[309786131,1704122600057,3205.77945367,0.00020513,2]
[309786132,1704122601119,2697.45131281,0.00020521,5]
[309786133,1704122601781,367.13612797,0.00020521,2]
[309786134,1704122603047,15178.7193092,0.00020521,2]
[309786135,1704122603574,2540.31825597,0.00020521,2]
[309786136,1704122603764,2702.82461258,0.00020521,2]
[309786137,1704122604337,166.08253714,0.00020521,2]
[309786138,1704122609144,7894.5697942,0.00020521,2]
[309786139,1704122609244,730.8035297,0.00020513,2]
[309786140,1704122611347,15849.01373132,0.00020521,2]
[309786141,1704122612707,198.13810198,0.00020521,2]
[309786142,1704122612789,360.01037887,0.00020521,2]
[309786143,1704122613484,13635.81904195,0.00020521,2]
[309786144,1704122613867,430.42716932,0.00020521,2]
[309786145,1704122615162,450.8673199,0.00020521,2]
[309786146,1704122615618,19622.64196242,0.00020521,2]
[309786147,1704122615849,757.20968572,0.00020521,5]
[309786148,1704122617046,1584.15548242,0.00020521,2]
[309786149,1704122617074,7230.68624543,0.00020521,2]
[309786150,1704122617127,1375.94235578,0.00020521,5]
[309786151,1704122618658,1572.81659635,0.00020521,2]
[309786152,1704122618835,552.93023041,0.00020521,2]
[309786153,1704122619833,2299.89915727,0.00020521,2]
[309786154,1704122620339,211.01930437,0.00020521,2]
[309786155,1704122625367,13599.62208289,0.00020521,2]
[309786156,1704122628763,78208.01491016,0.00020521,2]
[309786157,1704122630756,1572.81659635,0.00020521,2]
[309786158,1704122630799,360.01037887,0.00020521,2]
[309786159,1704122633196,803.19862536,0.00020521,2]
[309786160,1704122636832,451.07570337,0.00020521,2]
[309786161,1704122637613,8143.13520437,0.00020521,2]
[309786162,1704122637850,795.13992855,0.00018469,2]
[309786163,1704122641475,300.0,0.00020513,2]
[309786165,1704122694733,264.3616191,0.00020521,2]
[309786166,1704122705114,1237.40369246,0.00020521,2]
[309786167,1704122809813,78208.01491016,0.00020521,2]
[309786230,1704122839357,168.93736696,0.00020431,2]
[309786231,1704122876509,6206.19794345,0.00020521,2]
[309786232,1704122892596,1237.40369246,0.00020521,2]
[309786233,1704122936778,264.3616191,0.00020521,2]
[309786234,1704122950827,78208.01491016,0.00020521,2]
[309786235,1704122985189,154.84515485,0.00020521,2]
[309786298,1704123034549,-4388.08475357,0.00020522,2]
[309786299,1704123034563,-32363.65712991,0.00020522,2]
[309786300,1704123034573,-172.09567292,0.00020531,2]
[309786301,1704123034584,-263.321881,0.00020535,2]
[309786302,1704123034594,-154.84515485,0.0002064,2]
[309786303,1704123034604,-154.84515485,0.00020647,2]
[309786304,1704123034614,-154.87609912,0.00020647,2]
[309786305,1704123034623,-714.28227672,0.00020676,2]
[309786306,1704123034638,-184.38830778,0.00020676,2]
[309786307,1704123034648,-184.67964728,0.00020683,2]
[309786308,1704123034657,-154.84515485,0.00020775,2]
[309786309,1704123034667,-264.3616191,0.00021767,2]
[309786310,1704123034677,-2089.19910793,0.00021768,2]
[309786311,1704123034687,-167.26521,0.00021918,2]
[309786312,1704123034696,-1281.88560449,0.00022457,2]
[309786313,1704123034706,-223.5951374,0.00022457,2]
[309786314,1704123034715,-3694.97829272,0.00022458,2]
[309786315,1704123034725,-6444.74930918,0.0002246,2]
[309786316,1704123034739,-8733.97000002,0.0002246,2]
[309786317,1704123034749,-24322.12046943,0.00022462,2]
[309786318,1704123034758,-200.0,0.00022573,7]
[309786319,1704123034768,-2066.1268001,0.00022689,2]
[309786320,1704123034778,-1677.73758043,0.00022689,2]
[309786321,1704123034788,-536.01150595,0.0002269,2]
[309786322,1704123034798,-154.84515485,0.0002269,2]
[309786323,1704123034808,-303.08314397,0.00022691,2]
[309786324,1704123034818,-36796.35412549,0.00022691,2]
[309786325,1704123034826,-37207.82613777,0.00022692,2]
[309786434,1704123041447,-620.14389681,0.00022692,2]
[309786611,1704123043154,-1218.30829885,0.00022692,2]
[309786617,1704123043208,-716.56766284,0.00022692,2]
[309786954,1704123046132,-18557.91996832,0.00022692,2]
[309788524,1704123125275,-61575.82033346,0.00022692,2]
[309788525,1704123125303,-168.93736696,0.000231,2]
[309788526,1704123125331,-167.26521,0.000232,2]
[309788527,1704123125358,-9433.69986342,0.00023889,2]
[309788528,1704123125486,-2092.41935683,0.00023901,2]
[309788529,1704123125523,-219.4922876,0.00023902,2]
[309788530,1704123125551,-265.72506834,0.00023902,2]
[309788531,1704123125579,-249.29915914,0.00023902,2]
[309788532,1704123125607,-209.47689928,0.00023902,2]
[309788533,1704123125635,-158.09019812,0.00023902,2]
[309788534,1704123125664,-164.16358392,0.00023902,2]
[309788535,1704123125691,-587.59655593,0.00023902,2]
[309788536,1704123125717,-265.64633883,0.00023902,2]
[309788537,1704123125747,-2941.70324978,0.00023902,2]
[309788538,1704123125773,-380.31899681,0.00023902,2]
[309788539,1704123125800,-167.26521,0.00024482,2]
[309788540,1704123125826,-584.34464988,0.00025,2]
[309788541,1704123125854,-762.06708544,0.00025,2]
[309788542,1704123127196,1818.17749445,0.00022692,2]
[309788617,1704124238806,-264.3616191,0.00022688,2]
[309788618,1704124238816,-154.84515485,0.00022689,2]
[309788619,1704124238826,-1818.17749445,0.00022692,2]
[309788620,1704124238835,-261.28005277,0.00025,2]
[309788621,1704124238844,-183.858478,0.00029778,2]
[309788622,1704124238854,-495.78495864,0.0002996,5]
[309788623,1704124238863,-954.91130268,0.00030999,4]
[309788624,1704124238875,-3604.10378737,0.00030999,4]
[309788625,1704124238887,-18444.69876832,0.00030999,4]
[309788626,1704124238897,-4478.0,0.00031,30]
[309788627,1704124238907,-182.50438237,0.00031678,2]
[309788628,1704124238918,-241.00015196,0.00031889,2]
[309788629,1704124238927,-26068.20827736,0.000319,2]
[309788630,1704124238936,-635.89,0.00031989,3]
[309788631,1704124238946,-767.93743272,0.00031998,4]
[309788632,1704124238955,-307.55943381,0.00031998,4]
[309788633,1704124238968,-1046.90242617,0.00031998,4]
[309788634,1704124238978,-329.41806306,0.00031998,4]
[309788635,1704124238987,-362.61301643,0.00031998,4]
[309788669,1704124243581,-529.9,0.0003199,3]
[309788670,1704124243592,-17.61393022,0.00031998,4]
[309788671,1704124243603,-412.40571921,0.00031998,4]
[309788672,1704124243614,-311.20386173,0.00031998,4]
[309788673,1704124243623,-339.02335146,0.00031998,4]
[309788674,1704124243634,-193.84669098,0.00031998,4]
[309788675,1704124243644,-1650.37483956,0.00031998,4]
[309788676,1704124243654,-155.18134785,0.00031998,4]
[309788677,1704124243663,-245.11137567,0.00031998,4]
[309788678,1704124243672,-776.79217516,0.00031998,4]